[Event "48th Continental Open"]
[Site "Sturbridge, MA"]
[Date "2018.08.18"]
[Round "6.22"]
[White "Yu, Alex"]
[Black "Song, Alan"]
[Result "1/2-1/2"]
[ECO "B48"]
[WhiteElo "1852"]
[BlackElo "2043"]
[PlyCount "90"]
[EventDate "2018.08.??"]
[EventType "swiss"]
[EventRounds "9"]
[EventCountry "USA"]
[TimeControl "6000+10"]
[WhiteClock "0:00:59"]
[BlackClock "0:03:43"]

1. e4 {[%emt 0:00:10]} c5 {[%emt 0:00:21]} 2. Nf3 {[%emt 0:00:12]} e6 {[%emt 0:
00:10]} 3. d4 {[%emt 0:00:11]} cxd4 {[%emt 0:00:10]} 4. Nxd4 {[%emt 0:00:10]}
Nc6 {[%emt 0:00:10]} 5. Nc3 {[%emt 0:00:20]} Qc7 {[%emt 0:00:11]} 6. Be3 {
[%emt 0:01:06]} a6 {[%emt 0:00:11]} 7. f3 {[%emt 0:01:40]} Nf6 {[%emt 0:00:24]}
8. Qd2 {[%emt 0:01:05]} b5 {[%emt 0:00:11]} 9. O-O-O {[%emt 0:01:14]} Bb7 {
[%emt 0:00:11]} 10. g4 {[%emt 0:00:48]} h6 {[%emt 0:00:10]} 11. h4 {[%emt 0:01:
15]} b4 {[%emt 0:04:13]} 12. Na4 {[%emt 0:00:10]} Ne5 {[%emt 0:15:47]} 13. Be2
{[%emt 0:07:16]} d5 {[%emt 0:16:09]} 14. g5 {[%emt 0:02:53]} hxg5 {[%emt 0:01:
16]} 15. hxg5 {[%emt 0:00:10]} Rxh1 {[%emt 0:00:11]} 16. Rxh1 {[%emt 0:00:10]}
Nfd7 {[%emt 0:00:12]} 17. f4 {[%emt 0:05:56]} Nc6 {[%emt 0:00:10]} 18. g6 {
[%emt 0:20:00]} O-O-O {[%emt 0:03:57]} 19. e5 {[%emt 0:05:21]} Nxd4 {[%emt 0:
02:51]} 20. Qxd4 {[%emt 0:04:23]} fxg6 {[%emt 0:01:34]} 21. Rg1 {[%emt 0:03:04]
} Bc6 {[%emt 0:22:04]} 22. Bxa6+ {[%emt 0:03:52]} Kb8 {[%emt 0:00:10]} 23. b3 {
[%emt 0:13:49]} Bxa4 {[%emt 0:00:56]} 24. bxa4 {[%emt 0:00:10]} Bc5 {[%emt 0:
01:52]} 25. Qd3 {[%emt 0:00:10]} Bxe3+ {[%emt 0:01:12]} 26. Qxe3 {[%emt 0:00:
19]} Nc5 {[%emt 0:03:39]} 27. Bb5 {[%emt 0:00:10]} d4 {[%emt 0:03:08]} 28. Qf3
{[%emt 0:04:23]} d3 {[%emt 0:02:28]} 29. Qc6 {[%emt 0:09:48]} Qxc6 {[%emt 0:01:
07]} 30. Bxc6 {[%emt 0:00:11]} d2+ {[%emt 0:01:18]} 31. Kd1 {[%emt 0:00:10]}
Kc7 {[%emt 0:00:11]} 32. Bb5 {[%emt 0:00:10]} Kb6 {[%emt 0:01:30]} 33. Rxg6 {
[%emt 0:05:13]} Rf8 {[%emt 0:06:18]} 34. Kxd2 {[%emt 0:00:10]} Rxf4 {[%emt 0:
00:10]} 35. Rxg7 {[%emt 0:01:13]} Rf5 {[%emt 0:01:25]} 36. Rg4 {[%emt 0:00:10]}
Ka5 {[%emt 0:04:20]} 37. c3 {[%emt 0:00:12]} bxc3+ {[%emt 0:00:10]} 38. Kxc3 {
[%emt 0:01:26]} Rxe5 {[%emt 0:00:11]} 39. Rg2 {[%emt 0:01:51]} Rh5 {[%emt 0:02:
45]} 40. Kd4 {[%emt 0:00:10]} Rd5+ {[%emt 0:02:12]} 41. Kc4 {[%emt 0:00:11]}
Ne4 {[%emt 0:00:29]} 42. Rg8 {[%emt 0:05:23]} Nd6+ {[%emt 0:00:19]} 43. Kc3 {
[%emt 0:00:00]} Rd1 {[%emt 0:00:00]} 44. Bd3 {[%emt 0:00:05]} Rc1+ {[%emt 0:00:
51]} 45. Bc2 {[%emt 0:00:00]} Rh1 {[%emt 0:00:00]} 1/2-1/2

[Event "48th Continental Open"]
[Site "Sturbridge, MA"]
[Date "2018.08.18"]
[Round "6.23"]
[White "Sage, J Timothy"]
[Black "Zhao, Jeffrey Renfei"]
[Result "0-1"]
[ECO "D53"]
[WhiteElo "2036"]
[BlackElo "1827"]
[PlyCount "130"]
[EventDate "2018.08.??"]
[EventType "swiss"]
[EventRounds "9"]
[EventCountry "USA"]
[TimeControl "6000+10"]
[WhiteClock "0:00:49"]
[BlackClock "0:00:16"]

1. d4 {[%emt 0:00:10]} d5 2. c4 {[%emt 0:00:17]} e6 {[%emt 0:00:32]} 3. Nc3 {
[%emt 0:00:23]} Nf6 {[%emt 0:00:14]} 4. Bg5 {[%emt 0:00:23]} Be7 {[%emt 0:00:
16]} 5. e3 {[%emt 0:00:19]} b6 {[%emt 0:01:22]} 6. Nf3 {[%emt 0:00:14]} Bb7 {
[%emt 0:00:14]} 7. cxd5 {[%emt 0:00:11]} exd5 {[%emt 0:01:30]} 8. Bb5+ {
[%emt 0:01:50]} c6 {[%emt 0:00:47]} 9. Bd3 {[%emt 0:01:16]} O-O {[%emt 0:01:43]
} 10. O-O {[%emt 0:00:55]} Nbd7 {[%emt 0:00:44]} 11. Qc2 {[%emt 0:10:45]} Re8 {
[%emt 0:03:56]} 12. Rad1 {[%emt 0:05:16]} h6 {[%emt 0:02:23]} 13. Bf4 {[%emt 0:
05:06]} Nf8 {[%emt 0:06:00]} 14. Ne5 {[%emt 0:08:11]} Ne6 {[%emt 0:01:52]} 15.
Bg3 {[%emt 0:01:27]} Bd6 {[%emt 0:03:32]} 16. f4 {[%emt 0:04:32]} c5 {[%emt 0:
08:24]} 17. f5 {[%emt 0:22:47]} Nf8 {[%emt 0:07:03]} 18. Bb5 {[%emt 0:11:05]}
Re7 {[%emt 0:04:51]} 19. Qf2 {[%emt 0:00:38]} Rc8 {[%emt 0:05:14]} 20. Qf3 {
[%emt 0:02:09]} a6 {[%emt 0:08:34]} 21. Bd3 {[%emt 0:00:36]} Qc7 {[%emt 0:01:
32]} 22. Bb1 {[%emt 0:03:48]} N8d7 {[%emt 0:05:59]} 23. Nxd7 {[%emt 0:01:20]}
Qxd7 {[%emt 0:01:11]} 24. Bh4 {[%emt 0:00:11]} Kh7 {[%emt 0:07:05]} 25. Qh3 {
[%emt 0:02:13]} Rce8 {[%emt 0:04:52]} 26. Rf3 {[%emt 0:00:11]} cxd4 {[%emt 0:
10:02]} 27. exd4 {[%emt 0:00:10]} Qc7 {[%emt 0:01:24]} 28. g4 {[%emt 0:00:44]}
Rd7 {[%emt 0:09:04]} 29. g5 {[%emt 0:02:08]} Ne4 {[%emt 0:01:03]} 30. g6+ {
[%emt 0:00:36]} fxg6 {[%emt 0:01:29]} 31. fxg6+ {[%emt 0:00:11]} Kg8 {[%emt 0:
01:20]} 32. Rdf1 {[%emt 0:00:11]} Bc8 {[%emt 0:00:00]} 33. Qg2 {[%emt 0:00:24]}
Qc4 {[%emt 0:00:00]} 34. Rd1 {[%emt 0:01:05]} Be7 {[%emt 0:00:00]} 35. Bf2 {
[%emt 0:00:12]} Bf6 {[%emt 0:00:08]} 36. Bc2 {[%emt 0:00:11]} Bb7 {[%emt 0:01:
47]} 37. Bb3 {[%emt 0:00:11]} Qc7 {[%emt 0:00:00]} 38. Ne2 {[%emt 0:00:11]}
Nxf2 {[%emt 0:00:00]} 39. Qxf2 {[%emt 0:00:10]} Rde7 {[%emt 0:00:13]} 40. Nc3 {
[%emt 0:00:11]} Qd6 {[%emt 0:00:15]} 41. Rf5 {[%emt 0:07:00]} Bh4 {[%emt 0:00:
00]} 42. Qxh4 {[%emt 0:02:34]} Qxg6+ {[%emt 0:00:00]} 43. Qg3 {[%emt 0:04:46]}
Qxf5 {[%emt 0:00:00]} 44. Rf1 {[%emt 0:00:11]} Qe6 {[%emt 0:00:00]} 45. Rf2 {
[%emt 0:00:00]} Qe3 {[%emt 0:00:00]} 46. Nxd5 {[%emt 0:00:00]} Qxg3+ {[%emt 0:
00:00]} 47. hxg3 {[%emt 0:00:00]} Bxd5 {[%emt 0:00:00]} 48. Bxd5+ {[%emt 0:00:
00]} Kh8 {[%emt 0:00:23]} 49. Bc6 {[%emt 0:00:00]} Re1+ {[%emt 0:00:41]} 50.
Kg2 {[%emt 0:00:20]} R8e2 {[%emt 0:00:16]} 51. d5 {[%emt 0:00:00]} Kg8 {
[%emt 0:00:00]} 52. Bd7 {[%emt 0:00:00]} Rxf2+ {[%emt 0:00:00]} 53. Kxf2 {
[%emt 0:00:00]} Re5 {[%emt 0:00:23]} 54. Bc8 {[%emt 0:00:00]} a5 {[%emt 0:00:
29]} 55. d6 {[%emt 0:00:00]} Kf8 {[%emt 0:00:24]} 56. Bb7 {[%emt 0:00:09]} Re6
{[%emt 0:00:00]} 57. d7 {[%emt 0:00:10]} Ke7 {[%emt 0:00:13]} 58. Bc8 {[%emt 0:
00:23]} Rc6 {[%emt 0:00:13]} 59. Ke3 {[%emt 0:00:12]} Rc2 {[%emt 0:00:11]} 60.
b3 {[%emt 0:00:10]} Rxa2 {[%emt 0:00:11]} 61. Kd4 {[%emt 0:00:14]} Rg2 {
[%emt 0:00:00]} 62. Kd5 {[%emt 0:00:12]} Rxg3 {[%emt 0:00:10]} 63. Kc6 {
[%emt 0:00:11]} Rxb3 {[%emt 0:00:29]} 64. Kc7 {[%emt 0:00:15]} Rc3+ {[%emt 0:
00:12]} 65. Kb7 {[%emt 0:00:26]} a4 {[%emt 0:00:00]} 0-1

[Event "48th Continental Open"]
[Site "Sturbridge, MA"]
[Date "2018.08.18"]
[Round "6.24"]
[White "Cui, Cynthia"]
[Black "Finnerman, David"]
[Result "1-0"]
[ECO "A39"]
[WhiteElo "1798"]
[BlackElo "1735"]
[PlyCount "99"]
[EventDate "2018.08.??"]
[EventType "swiss"]
[EventRounds "9"]
[EventCountry "USA"]
[TimeControl "6000+10"]
[WhiteClock "0:02:51"]
[BlackClock "0:47:21"]

1. c4 {[%emt 0:00:10]} Nf6 2. Nc3 {[%emt 0:00:12]} g6 {[%emt 0:01:15]} 3. g3 {
[%emt 0:00:15]} Bg7 {[%emt 0:00:31]} 4. Bg2 {[%emt 0:00:15]} O-O {[%emt 0:00:
56]} 5. Nf3 {[%emt 0:00:12]} c5 {[%emt 0:00:55]} 6. O-O {[%emt 0:00:14]} Nc6 {
[%emt 0:00:24]} 7. d4 {[%emt 0:00:10]} d6 {[%emt 0:02:47]} 8. dxc5 {[%emt 0:00:
35]} dxc5 {[%emt 0:00:27]} 9. Bf4 {[%emt 0:01:33]} Be6 {[%emt 0:00:10]} 10. Ne5
{[%emt 0:02:52]} Nh5 {[%emt 0:08:30]} 11. Nxc6 {[%emt 0:01:39]} bxc6 {[%emt 0:
00:36]} 12. Bd2 {[%emt 0:08:26]} Bxc4 {[%emt 0:05:08]} 13. Bxc6 {[%emt 0:19:39]
} Rb8 {[%emt 0:01:35]} 14. b3 {[%emt 0:08:03]} Rb6 {[%emt 0:00:55]} 15. bxc4 {
[%emt 0:09:08]} Rxc6 {[%emt 0:00:26]} 16. Qc2 {[%emt 0:01:32]} Nf6 {[%emt 0:14:
09]} 17. Rfd1 {[%emt 0:02:13]} Qd4 {[%emt 0:07:11]} 18. Qa4 {[%emt 0:04:54]}
Re6 {[%emt 0:29:24]} 19. Rac1 {[%emt 0:05:28]} Qg4 {[%emt 0:00:10]} 20. Qxa7 {
[%emt 0:11:43]} Qh3 {[%emt 0:00:38]} 21. Qb7 {[%emt 0:13:28]} Ng4 {[%emt 0:00:
11]} 22. Qg2 {[%emt 0:00:30]} Qh5 {[%emt 0:00:40]} 23. Nd5 {[%emt 0:08:41]} g5
{[%emt 0:02:09]} 24. Ne3 {[%emt 0:00:00]} Nh6 {[%emt 0:06:36]} 25. g4 {[%emt 0:
00:00]} Qg6 {[%emt 0:00:11]} 26. Bc3 {[%emt 0:00:00]} f5 {[%emt 0:00:00]} 27.
Bxg7 {[%emt 0:00:00]} Kxg7 {[%emt 0:00:00]} 28. gxf5 {[%emt 0:00:00]} Nxf5 {
[%emt 0:00:00]} 29. Nxf5+ {[%emt 0:00:00]} Rxf5 {[%emt 0:00:00]} 30. e3 {
[%emt 0:00:00]} Ref6 {[%emt 0:00:00]} 31. Rd2 {[%emt 0:00:00]} Qf7 {[%emt 0:00:
00]} 32. Rd5 {[%emt 0:00:06]} e6 {[%emt 0:00:00]} 33. Rxf5 {[%emt 0:00:11]}
Rxf5 {[%emt 0:00:00]} 34. Rb1 {[%emt 0:00:13]} Kg6 {[%emt 0:00:00]} 35. Rb7 {
[%emt 0:00:11]} Qf6 {[%emt 0:00:00]} 36. Rb1 {[%emt 0:00:11]} Qe5 {[%emt 0:00:
00]} 37. Qf1 {[%emt 0:00:14]} Qe4 {[%emt 0:00:00]} 38. Rc1 {[%emt 0:00:16]}
Qg4+ {[%emt 0:00:00]} 39. Qg2 {[%emt 0:00:13]} Qh5 {[%emt 0:00:00]} 40. Kh1 {
[%emt 0:00:11]} Qh4 {[%emt 0:00:00]} 41. f4 {[%emt 0:00:11]} e5 {[%emt 0:00:00]
} 42. Qc6+ {[%emt 0:00:11]} Kh5 {[%emt 0:00:00]} 43. Qe8+ {[%emt 0:00:11]} Kg4
{[%emt 0:00:00]} 44. Rg1+ {[%emt 0:00:12]} Kf3 {[%emt 0:00:00]} 45. Qd7 {
[%emt 0:00:10]} Rf6 {[%emt 0:00:00]} 46. Qd1+ {[%emt 0:00:13]} Ke4 {[%emt 0:00:
00]} 47. Qd5+ {[%emt 0:00:11]} Kxe3 {[%emt 0:00:00]} 48. Qxe5+ {[%emt 0:00:10]}
Kf2 {[%emt 0:00:00]} 49. Qxf6 {[%emt 0:00:11]} Qh5 {[%emt 0:00:00]} 50. fxg5+ {
[%emt 0:00:11]} 1-0

[Event "48th Continental Open"]
[Site "Sturbridge, MA"]
[Date "2018.08.19"]
[Round "7.1"]
[White "Barbosa, Oliver"]
[Black "Baryshpolets, Andrey"]
[Result "1/2-1/2"]
[ECO "D56"]
[WhiteElo "2545"]
[BlackElo "2609"]
[PlyCount "27"]
[EventDate "2018.08.??"]
[EventType "swiss"]
[EventRounds "9"]
[EventCountry "USA"]
[TimeControl "6000+10"]
[WhiteClock "1:27:12"]
[BlackClock "1:06:29"]

1. d4 {[%emt 0:05:29]} d5 {[%emt 0:22:30]} 2. Nf3 {[%emt 0:00:16]} Nf6 {
[%emt 0:00:10]} 3. c4 {[%emt 0:00:10]} e6 {[%emt 0:00:10]} 4. Bg5 {[%emt 0:00:
41]} Be7 {[%emt 0:01:41]} 5. Nc3 {[%emt 0:00:26]} h6 {[%emt 0:00:10]} 6. Bh4 {
[%emt 0:00:10]} O-O {[%emt 0:00:10]} 7. e3 {[%emt 0:00:10]} Ne4 {[%emt 0:02:44]
} 8. Bxe7 {[%emt 0:00:16]} Qxe7 {[%emt 0:00:10]} 9. Rc1 {[%emt 0:00:10]} c6 {
[%emt 0:00:20]} 10. Bd3 {[%emt 0:00:11]} Nxc3 {[%emt 0:00:10]} 11. Rxc3 {
[%emt 0:00:10]} dxc4 {[%emt 0:06:48]} 12. Bxc4 {[%emt 0:00:21]} Nd7 {[%emt 0:
00:11]} 13. O-O {[%emt 0:00:13]} b6 {[%emt 0:00:37]} 14. Qe2 {[%emt 0:06:25]}
1/2-1/2

[Event "48th Continental Open"]
[Site "Sturbridge, MA"]
[Date "2018.08.19"]
[Round "7.3"]
[White "Mulyar, Michael"]
[Black "Vorontsov, Pavlo"]
[Result "0-1"]
[ECO "D30"]
[WhiteElo "2374"]
[BlackElo "2578"]
[PlyCount "92"]
[EventDate "2018.08.??"]
[EventType "swiss"]
[EventRounds "9"]
[EventCountry "USA"]
[TimeControl "6000+10"]
[WhiteClock "0:16:31"]
[BlackClock "0:00:04"]

1. d4 {[%emt 0:00:10]} Nf6 {[%emt 0:07:56]} 2. Nf3 {[%emt 0:00:29]} e6 {
[%emt 0:00:54]} 3. c4 {[%emt 0:00:24]} d5 {[%emt 0:00:39]} 4. Bg5 {[%emt 0:00:
37]} h6 {[%emt 0:01:17]} 5. Bxf6 {[%emt 0:00:20]} Qxf6 {[%emt 0:00:30]} 6. Nbd2
{[%emt 0:01:06]} Nc6 {[%emt 0:05:30]} 7. e3 {[%emt 0:01:13]} g5 {[%emt 0:00:13]
} 8. cxd5 {[%emt 0:09:57]} exd5 {[%emt 0:00:33]} 9. Bb5 {[%emt 0:00:19]} Bd6 {
[%emt 0:13:31]} 10. O-O {[%emt 0:06:42]} O-O {[%emt 0:01:27]} 11. Bxc6 {
[%emt 0:06:11]} bxc6 {[%emt 0:00:11]} 12. Nb3 {[%emt 0:07:00]} Bg4 {[%emt 0:07:
50]} 13. Rc1 {[%emt 0:00:48]} Rfb8 {[%emt 0:07:09]} 14. Qe2 {[%emt 0:04:29]} a5
{[%emt 0:04:31]} 15. Nc5 {[%emt 0:02:38]} Bxf3 {[%emt 0:08:43]} 16. gxf3 {
[%emt 0:00:34]} Re8 {[%emt 0:00:25]} 17. Rc2 {[%emt 0:04:38]} h5 {[%emt 0:16:
02]} 18. Nb7 {[%emt 0:02:50]} Bf8 {[%emt 0:05:07]} 19. Rfc1 {[%emt 0:02:00]}
Re6 {[%emt 0:00:22]} 20. Nc5 {[%emt 0:00:48]} Bxc5 {[%emt 0:00:17]} 21. Rxc5 {
[%emt 0:00:16]} Kh8 {[%emt 0:01:24]} 22. Kh1 {[%emt 0:04:30]} a4 {[%emt 0:04:
33]} 23. Rg1 {[%emt 0:03:45]} Rb8 {[%emt 0:03:03]} 24. f4 {[%emt 0:02:47]} g4 {
[%emt 0:01:10]} 25. Qc2 {[%emt 0:01:03]} Rb5 {[%emt 0:06:09]} 26. Rxb5 {
[%emt 0:03:38]} cxb5 {[%emt 0:00:10]} 27. Qxc7 {[%emt 0:00:21]} Rc6 {[%emt 0:
02:26]} 28. Qb8+ {[%emt 0:00:42]} Kh7 {[%emt 0:01:34]} 29. Qxb5 {[%emt 0:00:19]
} Qf5 {[%emt 0:00:19]} 30. Rd1 {[%emt 0:06:53]} Rc2 {[%emt 0:01:02]} 31. Kg1 {
[%emt 0:00:14]} h4 {[%emt 0:00:17]} 32. h3 {[%emt 0:03:46]} gxh3 {[%emt 0:00:
00]} 33. Qd3 {[%emt 0:00:14]} Qxd3 {[%emt 0:00:00]} 34. Rxd3 {[%emt 0:00:15]}
Rxb2 {[%emt 0:00:00]} 35. Ra3 {[%emt 0:00:14]} Kg6 {[%emt 0:00:00]} 36. Kh2 {
[%emt 0:00:15]} Rxf2+ {[%emt 0:00:00]} 37. Kxh3 {[%emt 0:00:15]} Kh5 {[%emt 0:
00:00]} 38. Rxa4 {[%emt 0:00:39]} Rf3+ {[%emt 0:00:00]} 39. Kg2 {[%emt 0:00:15]
} Kg4 {[%emt 0:00:34]} 40. Ra8 {[%emt 0:01:33]} h3+ {[%emt 0:00:00]} 41. Kh2 {
[%emt 0:00:40]} Rxe3 {[%emt 0:00:00]} 42. Rg8+ {[%emt 0:00:39]} Kxf4 {[%emt 0:
00:51]} 43. a4 {[%emt 0:02:12]} Ra3 {[%emt 0:00:00]} 44. a5 {[%emt 0:01:43]} f5
{[%emt 0:00:15]} 45. Re8 {[%emt 0:00:27]} Rxa5 {[%emt 0:00:32]} 46. Kxh3 {
[%emt 0:00:21]} Ra4 {[%emt 0:00:20]} 0-1

[Event "48th Continental Open"]
[Site "Sturbridge, MA"]
[Date "2018.08.19"]
[Round "7.4"]
[White "Corrales Jimenez, Fidel"]
[Black "Isakov, Michael"]
[Result "1-0"]
[ECO "B90"]
[WhiteElo "2542"]
[BlackElo "2163"]
[PlyCount "55"]
[EventDate "2018.08.??"]
[EventType "swiss"]
[EventRounds "9"]
[EventCountry "USA"]
[TimeControl "6000+10"]
[WhiteClock "0:43:59"]
[BlackClock "0:19:01"]

1. e4 {[%emt 0:10:30]} c5 {[%emt 0:00:20]} 2. Nf3 {[%emt 0:00:13]} d6 {[%emt 0:
00:10]} 3. d4 {[%emt 0:00:10]} cxd4 {[%emt 0:00:10]} 4. Nxd4 {[%emt 0:00:10]}
Nf6 {[%emt 0:00:10]} 5. Nc3 {[%emt 0:00:10]} a6 {[%emt 0:00:10]} 6. a4 {
[%emt 0:01:36]} e6 {[%emt 0:01:48]} 7. Be2 {[%emt 0:03:28]} Be7 {[%emt 0:00:14]
} 8. O-O {[%emt 0:00:16]} O-O {[%emt 0:00:27]} 9. Be3 {[%emt 0:00:10]} Nc6 {
[%emt 0:03:27]} 10. f4 {[%emt 0:00:10]} Qc7 {[%emt 0:04:15]} 11. Qe1 {[%emt 0:
00:17]} Bd7 {[%emt 0:02:16]} 12. Qg3 {[%emt 0:04:03]} Rfd8 {[%emt 0:08:49]} 13.
Kh1 {[%emt 0:01:34]} Bf8 {[%emt 0:09:43]} 14. f5 {[%emt 0:21:48]} Nxd4 {
[%emt 0:08:35]} 15. Bxd4 {[%emt 0:00:29]} e5 {[%emt 0:02:02]} 16. Be3 {[%emt 0:
00:10]} Bc6 {[%emt 0:02:23]} 17. Bg5 {[%emt 0:00:10]} Nxe4 {[%emt 0:09:26]} 18.
Nxe4 {[%emt 0:03:29]} Bxe4 {[%emt 0:00:10]} 19. Bxd8 {[%emt 0:00:10]} Rxd8 {
[%emt 0:00:11]} 20. c4 {[%emt 0:01:18]} d5 {[%emt 0:06:14]} 21. cxd5 {[%emt 0:
00:17]} Rxd5 {[%emt 0:04:51]} 22. Rac1 {[%emt 0:02:10]} Qd7 {[%emt 0:01:57]}
23. f6 {[%emt 0:03:56]} g6 {[%emt 0:01:29]} 24. Bf3 {[%emt 0:01:53]} Bxf3 {
[%emt 0:05:44]} 25. Qxf3 {[%emt 0:01:07]} Bc5 {[%emt 0:00:53]} 26. Rfd1 {
[%emt 0:00:31]} Rxd1+ {[%emt 0:09:35]} 27. Qxd1 {[%emt 0:00:16]} Bd4 {[%emt 0:
00:10]} 28. Qd2 {[%emt 0:00:10]} 1-0

[Event "48th Continental Open"]
[Site "Sturbridge, MA"]
[Date "2018.08.19"]
[Round "7.5"]
[White "Kumar, Aravind"]
[Black "Otchiyev, Arslan"]
[Result "1/2-1/2"]
[ECO "D10"]
[WhiteElo "2169"]
[BlackElo "2333"]
[PlyCount "164"]
[EventDate "2018.08.??"]
[EventType "swiss"]
[EventRounds "9"]
[EventCountry "USA"]
[TimeControl "6000+10"]
[WhiteClock "0:00:06"]
[BlackClock "1:30:01"]

1. d4 {[%emt 0:00:10]} d5 2. c4 {[%emt 0:00:31]} c6 {[%emt 0:00:31]} 3. Nc3 {
[%emt 0:00:15]} Nf6 {[%emt 0:00:11]} 4. e3 {[%emt 0:01:15]} a6 {[%emt 0:00:11]}
5. Qc2 {[%emt 0:02:33]} g6 {[%emt 0:02:56]} 6. Bd3 {[%emt 0:03:53]} Bg7 {
[%emt 0:00:11]} 7. Nf3 {[%emt 0:02:34]} b5 {[%emt 0:00:11]} 8. b3 {[%emt 0:04:
33]} Nbd7 {[%emt 0:00:11]} 9. O-O {[%emt 0:08:10]} O-O {[%emt 0:00:11]} 10. Bb2
{[%emt 0:11:42]} Rb8 {[%emt 0:00:11]} 11. Rac1 {[%emt 0:24:00]} Re8 {[%emt 0:
00:11]} 12. cxd5 {[%emt 0:13:18]} cxd5 {[%emt 0:00:12]} 13. Ne2 {[%emt 0:11:34]
} Bb7 {[%emt 0:00:11]} 14. Qc7 {[%emt 0:05:08]} Nf8 {[%emt 0:00:10]} 15. Nf4 {
[%emt 0:08:39]} Bh6 {[%emt 0:00:10]} 16. g3 {[%emt 0:00:17]} Qxc7 {[%emt 0:00:
11]} 17. Rxc7 {[%emt 0:00:11]} g5 {[%emt 0:00:22]} 18. Ne2 {[%emt 0:00:49]} Ne6
{[%emt 0:00:11]} 19. Rc2 {[%emt 0:00:00]} Rec8 {[%emt 0:00:11]} 20. Rfc1 {
[%emt 0:00:00]} Nd7 {[%emt 0:00:11]} 21. Bf5 {[%emt 0:00:00]} Ndf8 {[%emt 0:00:
11]} 22. Ne5 {[%emt 0:01:21]} Bg7 {[%emt 0:00:10]} 23. Nc6 {[%emt 0:01:58]}
Bxc6 {[%emt 0:00:10]} 24. Rxc6 {[%emt 0:00:11]} Rxc6 {[%emt 0:00:37]} 25. Rxc6
{[%emt 0:00:11]} Ra8 {[%emt 0:00:10]} 26. Nc3 {[%emt 0:00:00]} Nd8 {[%emt 0:00:
11]} 27. Rc8 {[%emt 0:00:00]} Rxc8 {[%emt 0:00:10]} 28. Bxc8 {[%emt 0:00:00]}
e6 {[%emt 0:00:11]} 29. b4 {[%emt 0:00:00]} Nc6 {[%emt 0:00:11]} 30. a3 {
[%emt 0:00:00]} Nb8 {[%emt 0:00:11]} 31. a4 {[%emt 0:00:00]} bxa4 {[%emt 0:00:
10]} 32. Nxa4 {[%emt 0:00:00]} Nfd7 {[%emt 0:02:06]} 33. Ba3 {[%emt 0:00:00]}
Bf8 {[%emt 0:00:11]} 34. Nc5 {[%emt 0:00:00]} Nb6 {[%emt 0:03:12]} 35. Nxa6 {
[%emt 0:00:09]} Nc4 {[%emt 0:00:10]} 36. Nxb8 {[%emt 0:00:42]} Nxa3 {[%emt 0:
00:10]} 37. Na6 {[%emt 0:00:32]} Bd6 {[%emt 0:00:10]} 38. Nc5 {[%emt 0:00:46]}
Kf8 {[%emt 0:00:10]} 39. Ba6 {[%emt 0:00:30]} Ke7 {[%emt 0:00:10]} 40. Bd3 {
[%emt 0:00:35]} h6 {[%emt 0:00:10]} 41. Kf1 {[%emt 0:00:00]} e5 {[%emt 0:00:10]
} 42. Ke2 {[%emt 0:00:00]} e4 {[%emt 0:00:10]} 43. Ba6 {[%emt 0:00:09]} Nc2 {
[%emt 0:00:10]} 44. b5 {[%emt 0:00:42]} Bc7 {[%emt 0:00:10]} 45. Bb7 {[%emt 0:
00:00]} Kd6 {[%emt 0:00:10]} 46. Bc6 {[%emt 0:00:00]} Na3 {[%emt 0:00:12]} 47.
f3 {[%emt 0:00:00]} exf3+ {[%emt 0:00:10]} 48. Kxf3 {[%emt 0:00:00]} Nc4 {
[%emt 0:00:10]} 49. Be8 {[%emt 0:00:33]} Ke7 {[%emt 0:00:13]} 50. Bc6 {[%emt 0:
00:12]} Kd6 {[%emt 0:00:10]} 51. Ke2 {[%emt 0:00:10]} Na5 {[%emt 0:00:10]} 52.
Nb7+ {[%emt 0:00:00]} Nxb7 {[%emt 0:00:10]} 53. Bxb7 {[%emt 0:00:06]} Ba5 {
[%emt 0:00:10]} 54. Bc8 {[%emt 0:00:04]} Kc7 {[%emt 0:00:10]} 55. Bg4 {[%emt 0:
00:38]} Kd6 {[%emt 0:00:10]} 56. Kd3 {[%emt 0:00:02]} Bb6 {[%emt 0:00:10]} 57.
Bc8 {[%emt 0:00:03]} Kc7 {[%emt 0:00:12]} 58. Bf5 {[%emt 0:00:15]} Kd6 {
[%emt 0:00:11]} 59. Bg4 {[%emt 0:00:20]} Ba5 {[%emt 0:00:10]} 60. e4 {[%emt 0:
00:12]} dxe4+ {[%emt 0:00:10]} 61. Kxe4 {[%emt 0:00:10]} Bb6 {[%emt 0:00:30]}
62. Bh5 {[%emt 0:00:00]} f5+ {[%emt 0:00:10]} 63. Kxf5 {[%emt 0:00:05]} Bxd4 {
[%emt 0:00:10]} 64. Kg6 {[%emt 0:00:24]} Bg1 {[%emt 0:00:11]} 65. h3 {[%emt 0:
00:00]} Ke7 {[%emt 0:00:10]} 66. Kxh6 {[%emt 0:00:00]} Kf6 {[%emt 0:00:10]} 67.
Bf3 {[%emt 0:00:00]} Bf2 {[%emt 0:00:12]} 68. h4 {[%emt 0:00:00]} gxh4 {
[%emt 0:00:10]} 69. g4 {[%emt 0:00:00]} Be3+ {[%emt 0:00:10]} 70. Kh5 {[%emt 0:
00:00]} h3 {[%emt 0:00:10]} 71. Kh4 {[%emt 0:01:05]} h2 {[%emt 0:00:10]} 72.
Kg3 {[%emt 0:00:10]} Bg1 {[%emt 0:00:10]} 73. Kf4 {[%emt 0:00:11]} Bc5 {
[%emt 0:00:51]} 74. g5+ {[%emt 0:00:18]} Kg7 {[%emt 0:00:10]} 75. Kf5 {[%emt 0:
00:00]} Be3 {[%emt 0:00:11]} 76. Be4 {[%emt 0:00:21]} Bd4 {[%emt 0:00:10]} 77.
Ke6 {[%emt 0:00:11]} Be3 {[%emt 0:00:10]} 78. Kf5 {[%emt 0:00:04]} Bd4 {
[%emt 0:00:10]} 79. Bf3 {[%emt 0:00:17]} Be3 {[%emt 0:00:10]} 80. Bc6 {[%emt 0:
00:08]} Bd4 {[%emt 0:00:10]} 81. Kg4 {[%emt 0:00:01]} Be3 {[%emt 0:00:11]} 82.
Kf5 {[%emt 0:00:16]} Bd4 {[%emt 0:00:10]} 1/2-1/2